bitfinex/quotes_BTCUSD_20240703
["timestamp","ask_amount","ask_price","bid_price","bid_amount"]
[1720046961055,0.596384,60437.0,60436.0,0.00618778]
[1720046961245,0.782884,60437.0,60436.0,0.01745099]
[1720046961425,0.858884,60437.0,60436.0,0.00618778]
[1720046961628,0.782884,60437.0,60436.0,0.00618778]
[1720046961889,0.730184,60437.0,60436.0,0.00618778]
[1720046962652,0.596384,60437.0,60436.0,0.00618778]
[1720046967111,0.597214,60437.0,60436.0,0.00618778]
[1720046969073,0.10083,60437.0,60436.0,0.00618778]
[1720046969258,0.10083,60437.0,60436.0,0.13668778]
[1720046969259,0.00083,60437.0,60436.0,0.13668778]
[1720046969448,0.00083,60437.0,60436.0,0.14813484]
[1720046969768,0.00083,60437.0,60436.0,0.20813484]
[1720046969947,0.00083,60437.0,60436.0,0.61909884]
[1720046971065,0.00083,60437.0,60436.0,0.54309884]
[1720046971380,0.00083,60437.0,60436.0,0.38163484]
[1720046971491,0.00083,60437.0,60436.0,0.38563484]
[1720046971699,0.00083,60437.0,60436.0,0.38163484]
[1720046972129,0.00083,60437.0,60436.0,0.38963484]
[1720046973403,0.00083,60437.0,60436.0,0.32963484]
[1720046973564,0.00083,60437.0,60436.0,0.32563484]
[1720046973948,0.00083,60437.0,60436.0,0.33363484]
[1720046975659,0.00083,60437.0,60436.0,0.20313484]
[1720046983595,0.166291,60437.0,60436.0,0.20313484]
[1720046983797,0.828137,60437.0,60436.0,0.03363484]
[1720046984115,0.904137,60437.0,60436.0,0.03363484]
[1720046984311,0.828137,60437.0,60436.0,0.03363484]
[1720046986397,0.497214,60437.0,60436.0,0.03363484]
[1720046987592,0.497214,60437.0,60436.0,0.32773484]
[1720046989618,0.00083,60437.0,60436.0,0.38773484]
[1720046991750,0.00083,60437.0,60436.0,0.32773484]
[1720046994091,0.00083,60437.0,60436.0,0.19843484]
[1720046994303,0.828137,60437.0,60436.0,0.03363484]
[1720046994548,0.92746304,60437.0,60436.0,0.02218778]
[1720046994719,0.828137,60437.0,60436.0,0.02218778]
[1720046995482,0.92752249,60437.0,60436.0,0.02218778]
[1720046995663,0.828137,60437.0,60436.0,0.02218778]
[1720046996061,0.92752167,60437.0,60436.0,0.02218778]
[1720046996379,0.828137,60437.0,60436.0,0.02218778]
[1720046997142,0.95237081,60437.0,60436.0,0.02218778]
[1720046998398,0.828137,60437.0,60436.0,0.02218778]
[1720046999149,0.95241299,60437.0,60436.0,0.02218778]
[1720046999606,0.828137,60437.0,60436.0,0.02218778]
[1720047002435,0.95241652,60437.0,60436.0,0.02218778]
[1720047002606,0.95241652,60437.0,60436.0,0.016]
[1720047002607,1.53111149,60437.0,60436.0,0.016]
[1720047002816,1.68024859,60437.0,60436.0,0.016]
[1720047003017,1.86203449,60437.0,60436.0,0.016]
[1720047003217,1.60423445,60437.0,60436.0,0.016]
[1720047003433,1.41131149,60437.0,60436.0,0.016]
[1720047003621,1.41131149,60437.0,60436.0,0.008]
[1720047004206,1.41112513,60437.0,60436.0,0.008]
[1720047004408,1.41112513,60437.0,60435.0,0.00618778]
[1720047004409,0.82732,60436.0,60435.0,0.00618778]
[1720047004657,1.05157005,60436.0,60435.0,0.16978778]
[1720047005006,1.15096713,60436.0,60435.0,0.18034783]
[1720047005191,1.05157005,60436.0,60435.0,0.18034783]
[1720047005572,1.05157005,60436.0,60435.0,0.16978778]
[1720047005986,1.05157005,60436.0,60435.0,0.18034783]
[1720047006187,1.05357005,60436.0,60435.0,0.18034783]
[1720047006713,0.94782845,60436.0,60435.0,0.01674783]
[1720047006947,0.94782845,60436.0,60435.0,0.00618778]
[1720047007527,0.92732,60436.0,60435.0,0.00618778]
[1720047007662,0.94758962,60436.0,60435.0,0.00618778]
[1720047008057,0.94758962,60436.0,60435.0,0.00818778]
[1720047008671,0.94758962,60436.0,60435.0,0.01118778]
[1720047009729,0.947899,60436.0,60435.0,0.01118778]
[1720047010994,0.92732,60436.0,60435.0,0.01118778]
[1720047011194,0.94778231,60436.0,60435.0,0.01118778]
[1720047011314,0.92732,60436.0,60435.0,0.00918778]
[1720047011816,0.92732,60436.0,60435.0,0.00618778]
[1720047013069,0.94782463,60436.0,60435.0,0.00618778]
[1720047013303,0.94782465,60436.0,60435.0,0.00618778]
[1720047014056,0.94789682,60436.0,60435.0,0.00618778]
[1720047014262,0.92732,60436.0,60435.0,0.00618778]
[1720047014886,1.05154261,60436.0,60435.0,0.00618778]
[1720047015052,0.92732,60436.0,60435.0,0.00618778]
[1720047015816,1.05154261,60436.0,60435.0,0.00618778]
[1720047016021,1.05154261,60436.0,60435.0,0.00718778]
[1720047016619,1.05154261,60436.0,60435.0,0.28998778]
[1720047016975,1.05154261,60436.0,60435.0,0.30054783]
[1720047017219,1.05154147,60436.0,60435.0,0.30054783]
[1720047018630,1.05154147,60436.0,60435.0,0.28998778]
[1720047018812,1.05154147,60436.0,60435.0,0.15858778]
[1720047019254,0.92732,60436.0,60435.0,0.15858778]
[1720047019455,1.05155161,60436.0,60435.0,0.15858778]
[1720047019905,1.05155161,60436.0,60435.0,0.16915]
[1720047020482,0.92732,60436.0,60435.0,0.16915]
[1720047020833,0.95225039,60436.0,60435.0,0.16915]
[1720047021080,0.95225039,60436.0,60435.0,0.15858778]
[1720047022654,0.95225039,60436.0,60435.0,0.00718778]
[1720047022839,0.97809948,60436.0,60435.0,0.00718778]
[1720047023039,1.30902748,60436.0,60435.0,0.001]
[1720047023297,1.38502748,60436.0,60435.0,0.001]
[1720047023724,1.38494726,60436.0,60435.0,0.001]
[1720047024047,0.827375,60432.0,60431.0,0.16568778]
[1720047024281,1.02676725,60432.0,60431.0,0.16568778]
[1720047025254,1.02676725,60432.0,60431.0,0.17068778]
[1720047025751,1.02676725,60432.0,60431.0,0.17468778]
[1720047026145,1.06083675,60432.0,60431.0,0.17068778]
[1720047026449,1.06083675,60432.0,60431.0,0.16568778]
[1720047026671,0.9614445,60432.0,60431.0,0.16768778]
[1720047026865,1.06083458,60432.0,60431.0,0.16768778]
[1720047027023,1.06083458,60432.0,60431.0,0.17068778]
[1720047027671,1.06083458,60432.0,60431.0,0.01118778]
[1720047027828,1.31713082,60432.0,60431.0,0.005]
[1720047029380,1.31713082,60432.0,60431.0,0.003]
[1720047029640,1.31713082,60432.0,60431.0,0.00918778]
[1720047029844,1.31713082,60432.0,60431.0,0.003]
[1720047030107,1.31726911,60432.0,60431.0,0.003]
[1720047031047,0.827387,60431.0,60430.0,0.17258778]
[1720047031199,0.95160764,60431.0,60430.0,0.17258778]
[1720047031788,0.78613064,60431.0,60430.0,0.17258778]
[1720047032527,0.81100021,60431.0,60430.0,0.17258778]
[1720047032730,0.78613064,60431.0,60430.0,0.17258778]
[1720047032934,0.95160764,60431.0,60430.0,0.17258778]
[1720047033339,0.95160459,60431.0,60430.0,0.17258778]
[1720047035001,0.95160459,60431.0,60430.0,0.17358778]
[1720047035410,0.95160459,60431.0,60430.0,0.17258778]
[1720047035830,0.95160459,60431.0,60430.0,0.17358778]
[1720047036523,0.95160062,60431.0,60430.0,0.17358778]
[1720047036950,0.95160061,60431.0,60430.0,0.17358778]
[1720047039782,0.95161202,60431.0,60430.0,0.17358778]
[1720047041613,0.827387,60431.0,60430.0,0.17358778]
[1720047042144,0.496432,60431.0,60430.0,0.30048778]
[1720047042349,0.62065702,60431.0,60430.0,0.31170466]
[1720047042574,0.496432,60431.0,60430.0,0.31170466]
[1720047044213,0.62066795,60431.0,60430.0,0.31170466]
[1720047044785,0.496432,60431.0,60430.0,0.31170466]
[1720047044957,0.59582856,60431.0,60430.0,0.31170466]
[1720047045253,0.496432,60431.0,60430.0,0.31170466]
[1720047046622,0.827387,60431.0,60430.0,0.31170466]
[1720047047023,0.827387,60431.0,60430.0,0.001]
[1720047047298,0.827387,60431.0,60430.0,0.00718778]
[1720047047463,0.95163803,60431.0,60430.0,0.01721739]
[1720047047676,0.95163803,60431.0,60430.0,0.00718778]
[1720047049499,0.95165173,60431.0,60430.0,0.00718778]
[1720047049899,0.95165161,60431.0,60430.0,0.00718778]
[1720047051128,1.35860661,60431.0,60430.0,0.001]
[1720047051332,1.6842409,60431.0,60430.0,0.001]
[1720047051693,2.06900812,60431.0,60430.0,0.001]
[1720047051936,2.06900812,60431.0,60418.0,0.000913]
[1720047051937,1.158573,60419.0,60418.0,0.000913]
[1720047052139,1.2590731,60419.0,60418.0,0.000913]
[1720047052625,1.26070374,60419.0,60418.0,0.000913]
[1720047053226,1.38489022,60419.0,60418.0,0.000913]
[1720047053426,1.35875948,60419.0,60418.0,0.000913]
[1720047053626,1.09483822,60419.0,60418.0,0.000913]
[1720047053837,1.26034822,60419.0,60418.0,0.000913]
[1720047054039,1.36034822,60419.0,60418.0,0.000913]
[1720047054250,1.36134822,60419.0,60418.0,0.000913]
[1720047055395,1.48545983,60419.0,60418.0,0.000913]
[1720047055739,1.48571082,60419.0,60418.0,0.000913]
[1720047056155,1.335573,60419.0,60418.0,0.000913]
[1720047057268,1.43481794,60419.0,60418.0,0.000913]
[1720047058301,1.335573,60419.0,60418.0,0.000913]
[1720047058755,1.43481794,60419.0,60418.0,0.000913]
[1720047058948,1.43479979,60419.0,60418.0,0.000913]
[1720047059145,1.335573,60419.0,60418.0,0.000913]
[1720047060764,1.43479979,60419.0,60418.0,0.000913]
[1720047060961,1.4855234,60419.0,60418.0,0.000913]
[1720047061181,1.90663607,60419.0,60418.0,0.000913]
[1720047061384,1.95091206,60419.0,60418.0,0.000913]
[1720047061583,2.03102296,60419.0,60418.0,0.000913]
[1720047061786,1.97721074,60419.0,60418.0,0.000913]
[1720047061944,1.97721111,60419.0,60418.0,0.000913]
[1720047062143,1.90121111,60419.0,60418.0,0.000913]
[1720047062327,1.97721111,60419.0,60418.0,0.000913]
[1720047062568,1.9070039,60419.0,60418.0,0.000913]
[1720047063416,1.93137833,60419.0,60418.0,0.000913]
[1720047064468,1.93148357,60419.0,60418.0,0.000913]
[1720047064672,1.90507945,60419.0,60418.0,0.000913]
[1720047064876,2.00423432,60419.0,60418.0,0.000913]
[1720047066123,1.8744221,60419.0,60418.0,0.000913]
[1720047066297,1.8744221,60419.0,60418.0,0.156813]
[1720047066298,1.28294743,60419.0,60418.0,0.156813]
[1720047066620,1.28394743,60419.0,60418.0,0.1672739]
[1720047067164,1.35894743,60419.0,60418.0,0.1672739]
[1720047067370,1.35994743,60419.0,60418.0,0.1672739]
[1720047070357,0.597531,60419.0,60418.0,0.30266168]
[1720047071199,0.59558059,60428.0,60427.0,0.16588778]
[1720047071408,0.496458,60428.0,60427.0,0.29508778]
[1720047071622,0.82743,60428.0,60427.0,0.29508778]
[1720047072511,0.92743,60428.0,60427.0,0.29508778]
[1720047072694,0.92743,60428.0,60427.0,0.29708778]
[1720047073845,0.92743,60428.0,60427.0,0.30008778]
[1720047075270,0.92743,60428.0,60427.0,0.1647]
[1720047075825,0.92743,60428.0,60427.0,0.17088778]
[1720047076385,0.92743,60428.0,60427.0,0.16788778]
[1720047076592,0.92843,60428.0,60427.0,0.16588778]
[1720047076805,0.597458,60428.0,60427.0,0.16588778]
[1720047077134,0.596458,60428.0,60427.0,0.16588778]
[1720047077302,0.597458,60428.0,60427.0,0.17630965]
[1720047077542,0.597458,60428.0,60427.0,0.16588778]
[1720047077942,0.596458,60428.0,60427.0,0.16588778]
[1720047079476,0.596458,60428.0,60427.0,0.16788778]
[1720047079991,0.596458,60428.0,60427.0,0.17088778]
[1720047084144,0.596458,60428.0,60427.0,0.29498778]
[1720047084145,0.1,60428.0,60427.0,0.29498778]
[1720047084486,0.1,60428.0,60427.0,0.30540965]
[1720047086653,0.265486,60428.0,60427.0,0.30540965]
[1720047087637,0.596458,60428.0,60427.0,0.30540965]
[1720047087824,0.596458,60428.0,60427.0,0.29498778]
[1720047088042,1.18193,60428.0,60427.0,0.005]
[1720047088242,1.18193,60428.0,60427.0,0.01118778]
[1720047088857,1.18193,60428.0,60427.0,0.005]
[1720047089063,1.18193,60428.0,60427.0,0.00918778]
[1720047089663,1.18193,60428.0,60427.0,0.00618778]
[1720047089951,1.18193,60428.0,60424.0,0.00618778]
[1720047089952,0.496482,60425.0,60424.0,0.00618778]
[1720047090081,0.596482,60425.0,60424.0,0.00618778]
[1720047090288,0.596482,60425.0,60421.0,0.2891]
[1720047090289,0.165499,60424.0,60423.0,0.00618778]
[1720047090492,0.265499,60424.0,60423.0,0.17598778]
[1720047090715,0.1,60424.0,60423.0,0.17598778]
[1720047090920,0.1,60424.0,60423.0,0.31411901]
[1720047091525,0.330965,60430.0,60429.0,0.00618778]
[1720047091698,0.16548,60430.0,60429.0,0.16388778]
[1720047091899,0.596441,60430.0,60429.0,0.30237895]
[1720047094938,0.596441,60430.0,60429.0,0.30937895]
[1720047095427,0.596441,60430.0,60429.0,0.31537895]
[1720047095843,0.927402,60430.0,60429.0,0.03007895]
[1720047096403,0.927402,60430.0,60429.0,0.01918778]
[1720047098161,0.928232,60430.0,60429.0,0.01918778]
[1720047101357,1.335193,60430.0,60429.0,0.013]
[1720047101583,1.36363791,60430.0,60429.0,0.013]
[1720047102179,1.36363791,60430.0,60429.0,0.006]
[1720047102381,1.36363791,60430.0,60429.0,0.01218778]
[1720047102566,1.36463791,60430.0,60429.0,0.00618778]
[1720047102774,1.36463791,60430.0,60426.0,0.29]
[1720047102775,0.661932,60429.0,60427.0,0.00618778]
[1720047103086,0.330977,60427.0,60419.0,0.000913]
[1720047103283,0.165508,60420.0,60419.0,0.000913]
[1720047103486,0.82754,60420.0,60419.0,0.000913]
[1720047103843,1.28712288,60420.0,60419.0,0.000913]
[1720047105406,1.258556,60420.0,60419.0,0.000913]
[1720047105621,1.258556,60420.0,60419.0,0.002913]
[1720047106035,1.258556,60420.0,60419.0,0.000913]
[1720047106329,1.31536822,60420.0,60419.0,0.000913]
[1720047106541,1.86130781,60420.0,60419.0,0.000913]
[1720047106984,1.98534746,60420.0,60419.0,0.000913]
[1720047109147,1.98968302,60420.0,60419.0,0.000913]
[1720047109495,2.02209788,60420.0,60419.0,0.000913]
[1720047109671,2.14615244,60420.0,60419.0,0.000913]
[1720047110456,2.04652886,60420.0,60419.0,0.000913]
[1720047112407,2.090114,60420.0,60419.0,0.000913]
[1720047112722,2.12187683,60420.0,60419.0,0.000913]
[1720047113285,2.12187683,60420.0,60410.0,0.00618778]
[1720047113286,0.05381222,60418.0,60409.0,0.0725826]
[1720047113491,1.158748,60410.0,60409.0,0.00618778]
[1720047114919,1.158766,60409.0,60407.0,0.13990078]
[1720047116158,1.158766,60409.0,60408.0,0.1665]
[1720047116445,1.158766,60409.0,60408.0,0.1565]
[1720047116645,1.158766,60409.0,60408.0,0.1675]
[1720047116846,1.158766,60409.0,60408.0,0.1725]
[1720047117072,1.158766,60409.0,60408.0,0.1675]
[1720047117854,1.158766,60409.0,60408.0,0.1565]
[1720047118265,1.158766,60409.0,60408.0,0.1605]
[1720047118601,1.158766,60409.0,60408.0,0.1625]
[1720047119014,1.158766,60409.0,60408.0,0.006]
[1720047119015,1.234766,60409.0,60408.0,0.006]
[1720047119160,1.38857822,60409.0,60408.0,0.006]
[1720047119363,1.93690872,60409.0,60408.0,0.006]
[1720047119586,2.06089072,60409.0,60408.0,0.006]
[1720047120288,2.06089072,60409.0,60408.0,0.004]
[1720047120698,2.22118952,60409.0,60408.0,0.004]
[1720047121243,2.22168763,60409.0,60408.0,0.004]
[1720047121565,2.09772938,60409.0,60408.0,0.001]
[1720047121766,2.09772938,60409.0,60407.0,0.000913]
[1720047121767,1.54367622,60408.0,60407.0,0.000913]
[1720047121963,1.90311143,60408.0,60407.0,0.000913]
[1720047122172,1.80397502,60408.0,60407.0,0.000913]
[1720047122369,1.7501628,60408.0,60407.0,0.000913]
[1720047122568,1.258783,60408.0,60407.0,0.000913]
[1720047122770,1.334783,60408.0,60407.0,0.000913]
[1720047122995,1.71967622,60408.0,60407.0,0.000913]
[1720047123194,1.71967622,60408.0,60407.0,0.001913]
[1720047123411,1.39259522,60408.0,60407.0,0.002913]
[1720047123637,1.338783,60408.0,60407.0,0.002913]
[1720047123869,1.39259522,60408.0,60407.0,0.002913]
[1720047124615,1.39259522,60408.0,60407.0,0.001913]
[1720047124977,1.39259522,60408.0,60407.0,0.000913]
[1720047124978,1.38859522,60408.0,60407.0,0.000913]
[1720047125126,1.39259522,60408.0,60407.0,0.001913]
[1720047125555,1.38859522,60408.0,60407.0,0.001913]
[1720047125780,1.38859522,60408.0,60407.0,0.002913]
[1720047125781,1.71967622,60408.0,60407.0,0.002913]
[1720047125935,1.72367622,60408.0,60407.0,0.002913]
[1720047127175,1.31659522,60408.0,60407.0,0.002913]
[1720047127381,1.39259522,60408.0,60407.0,0.002913]
[1720047127983,1.72367622,60408.0,60407.0,0.002913]
[1720047128504,1.75293655,60408.0,60407.0,0.001913]
[1720047128705,1.75693655,60408.0,60407.0,0.002913]
[1720047129303,1.91323535,60408.0,60407.0,0.001913]
[1720047129665,1.91723535,60408.0,60407.0,0.002913]
[1720047130457,1.6073451,60408.0,60407.0,0.002913]
[1720047130658,1.78463284,60408.0,60407.0,0.002913]
[1720047130862,2.11571384,60408.0,60407.0,0.002913]
[1720047131418,2.14878677,60408.0,60407.0,0.002913]
[1720047133328,1.97148677,60408.0,60407.0,0.002913]
[1720047133527,2.05658677,60408.0,60407.0,0.002913]
[1720047133829,2.16542176,60408.0,60407.0,0.002913]
[1720047135388,2.13258677,60408.0,60407.0,0.002913]
[1720047136270,2.1649228,60408.0,60407.0,0.002913]
[1720047138304,2.16549893,60408.0,60407.0,0.002913]
[1720047140332,2.46549893,60408.0,60407.0,0.002913]
[1720047140539,2.48849893,60408.0,60407.0,0.002913]
[1720047141119,1.95139893,60408.0,60407.0,0.002913]
[1720047141316,1.92839893,60408.0,60407.0,0.002913]
[1720047141517,2.00439893,60408.0,60407.0,0.002913]
[1720047141750,2.0036017,60408.0,60407.0,0.002913]
[1720047142137,2.00360171,60408.0,60407.0,0.002913]
[1720047142697,1.94978949,60408.0,60407.0,0.002913]
[1720047142867,2.00360171,60408.0,60407.0,0.002913]
[1720047143063,1.94978949,60408.0,60407.0,0.002913]
[1720047144030,1.38240969,60408.0,60407.0,0.00910078]
[1720047144230,1.39208869,60408.0,60407.0,0.29970078]
[1720047144451,1.39208869,60408.0,60407.0,0.30676247]
[1720047145190,1.3908672,60408.0,60407.0,0.30576247]
[1720047145392,1.3938672,60408.0,60407.0,0.30476247]
[1720047145723,1.3938672,60408.0,60407.0,0.31095025]
[1720047145923,1.3908672,60408.0,60407.0,0.31095025]
[1720047146162,1.3948672,60408.0,60407.0,0.31095025]
[1720047146365,1.3948672,60408.0,60407.0,0.29770078]
[1720047146366,0.62181175,60408.0,60407.0,0.29770078]
[1720047146761,0.62181175,60408.0,60407.0,0.31093665]
[1720047147417,0.066313,60414.0,60413.0,0.00618778]
[1720047147620,0.03407191,60414.0,60413.0,0.00618778]
[1720047147758,0.165524,60414.0,60413.0,0.01939822]
[1720047147968,0.165524,60414.0,60413.0,0.00618778]
[1720047147969,0.496573,60414.0,60413.0,0.00618778]
[1720047148207,0.496573,60414.0,60413.0,0.28698778]
[1720047148613,0.496573,60414.0,60413.0,0.30019743]
[1720047148816,0.600573,60414.0,60413.0,0.30119743]
[1720047149239,0.596573,60414.0,60413.0,0.30019743]
[1720047149584,0.596573,60414.0,60413.0,0.30119743]
[1720047150644,0.596573,60414.0,60413.0,0.29700965]
[1720047150846,0.927622,60414.0,60413.0,0.29700965]
[1720047151002,0.927622,60414.0,60413.0,0.2838]
[1720047151198,1.258671,60414.0,60413.0,0.003]
[1720047151404,1.36910392,60414.0,60413.0,0.003]
[1720047151888,1.36910392,60414.0,60413.0,0.002]
[1720047152341,1.36910392,60414.0,60413.0,0.001]
[1720047152566,0.82765,60412.0,60411.0,0.15928778]
[1720047152783,1.00365,60412.0,60411.0,0.15928778]
[1720047154633,1.00465,60412.0,60411.0,0.15928778]
[1720047156776,1.10390726,60412.0,60411.0,0.1531]
[1720047156992,1.00465,60412.0,60411.0,0.1531]
[1720047157192,1.00465,60412.0,60411.0,0.15928778]
[1720047159207,0.92865,60412.0,60411.0,0.15928778]
[1720047159745,0.59759,60412.0,60411.0,0.28438778]
[1720047160266,0.59759,60412.0,60411.0,0.29557723]
[1720047160871,0.59659,60412.0,60411.0,0.29557723]
[1720047161084,0.59759,60412.0,60411.0,0.29557723]
[1720047161486,0.26553,60412.0,60411.0,0.29557723]
[1720047162006,0.26553,60412.0,60411.0,0.30057723]
[1720047162774,0.26553,60412.0,60411.0,0.30557723]
[1720047163088,0.59659,60412.0,60411.0,0.30557723]
[1720047163559,0.59659,60412.0,60411.0,0.30057723]
[1720047164167,0.59659,60412.0,60411.0,0.30657723]
[1720047164296,0.59743,60412.0,60411.0,0.30657723]
[1720047164979,0.92849,60412.0,60411.0,0.30657723]
[1720047165207,0.92849,60412.0,60411.0,0.29538778]
[1720047166534,0.92849,60412.0,60411.0,0.28938778]
[1720047166736,1.00449,60412.0,60411.0,0.01118778]
[1720047167171,1.00449,60412.0,60411.0,0.01718778]
[1720047167671,1.00449,60412.0,60411.0,0.00618778]
[1720047167672,0.92849,60412.0,60411.0,0.00618778]
[1720047167822,0.92949,60412.0,60411.0,0.01118778]
[1720047168038,0.92949,60412.0,60411.0,0.00618778]
[1720047168467,1.00449,60412.0,60411.0,0.00618778]
[1720047169225,1.33555,60412.0,60411.0,0.00618778]
[1720047170434,1.33555,60412.0,60408.0,0.155924]
[1720047170435,0.827677,60410.0,60409.0,0.00618778]
[1720047170639,0.903677,60410.0,60409.0,0.00618778]
[1720047171654,0.903677,60410.0,60409.0,0.00718778]
[1720047174161,0.93629262,60410.0,60409.0,0.00718778]
[1720047177326,0.903677,60410.0,60409.0,0.00718778]
[1720047177528,0.96885306,60410.0,60409.0,0.00718778]
[1720047178351,0.89285306,60410.0,60409.0,0.00718778]
[1720047180724,0.86026503,60410.0,60409.0,0.17158778]
[1720047181353,0.86026503,60410.0,60409.0,0.18199622]
[1720047181554,0.86026503,60410.0,60409.0,0.18499622]
[1720047181755,0.86026503,60410.0,60409.0,0.17358778]
[1720047182356,0.03258803,60410.0,60409.0,0.35568778]
[1720047182559,0.03258803,60410.0,60409.0,0.35768778]
[1720047182758,0.03258803,60410.0,60409.0,0.30909622]
[1720047183276,0.03258803,60410.0,60409.0,0.36909622]
[1720047183535,0.03258803,60410.0,60409.0,0.36609622]
[1720047184557,0.03258803,60410.0,60409.0,0.37709622]
[1720047184698,0.03258803,60410.0,60409.0,0.37509622]
[1720047185101,0.03258803,60410.0,60409.0,0.38509622]
[1720047187046,0.03258803,60410.0,60409.0,0.32509622]
[1720047189074,0.10084,60412.0,60411.0,0.00618778]
[1720047189279,0.20022311,60412.0,60411.0,0.18638834]
[1720047189450,0.20025091,60412.0,60411.0,0.18638834]
[1720047190946,0.20025091,60412.0,60411.0,0.19438834]
[1720047191363,0.10084,60412.0,60411.0,0.19438834]
[1720047191562,0.20027737,60412.0,60411.0,0.20238834]
[1720047192417,0.10084,60412.0,60411.0,0.20238834]
[1720047197802,0.10084,60412.0,60411.0,0.26238834]
[1720047198121,0.00084,60412.0,60411.0,0.26238834]
[1720047198677,0.00084,60412.0,60411.0,0.33098834]
[1720047198875,0.00084,60412.0,60411.0,0.39098834]
[1720047201813,0.12429035,60417.0,60416.0,0.29618778]
[1720047202146,0.12429035,60418.0,60417.0,0.00618778]
[1720047202291,0.166339,60420.0,60419.0,0.00618778]
[1720047202489,0.166339,60420.0,60419.0,0.01757797]
[1720047202690,0.19846789,60420.0,60419.0,0.01757797]
[1720047204026,0.29846789,60420.0,60419.0,0.01757797]
[1720047204397,0.29846789,60420.0,60419.0,0.01857797]
[1720047205551,0.29846789,60420.0,60419.0,0.02057797]
[1720047205757,0.39058814,60420.0,60419.0,0.02057797]
[1720047205895,0.42271063,60420.0,60419.0,0.02057797]
[1720047206133,0.29846149,60420.0,60419.0,0.02057797]
[1720047206368,0.75372007,60420.0,60419.0,0.02057797]
[1720047206507,0.62947749,60420.0,60419.0,0.02057797]
[1720047206865,0.62947749,60420.0,60419.0,0.29738778]
[1720047207166,0.62947749,60420.0,60419.0,0.30877797]
[1720047208585,0.96049349,60420.0,60419.0,0.17747797]
[1720047208805,0.62947749,60420.0,60419.0,0.30877797]
[1720047208979,0.62959455,60420.0,60419.0,0.29738778]
[1720047209185,0.62959455,60420.0,60419.0,0.30877797]
[1720047209352,0.75382628,60420.0,60419.0,0.30877797]
[1720047209550,0.62959455,60420.0,60419.0,0.30877797]
[1720047210355,0.96061055,60420.0,60419.0,0.02057797]
[1720047210618,1.19691055,60420.0,60419.0,0.02057797]
[1720047210831,1.19691055,60420.0,60419.0,0.003]
[1720047211329,1.67701266,60420.0,60419.0,0.003]
[1720047212324,1.52792655,60420.0,60419.0,0.002]
[1720047212528,1.52792655,60420.0,60417.0,0.00618778]
[1720047212529,0.827567,60418.0,60417.0,0.00618778]
[1720047212763,1.03580655,60418.0,60417.0,0.00618778]
[1720047212957,1.36683355,60418.0,60417.0,0.00618778]
[1720047215309,1.36539819,60418.0,60417.0,0.00618778]
[1720047218364,1.334594,60418.0,60417.0,0.00618778]
[1720047218719,1.36534104,60418.0,60417.0,0.00618778]
[1720047218917,1.334594,60418.0,60417.0,0.00618778]
[1720047219074,1.36535948,60418.0,60417.0,0.00618778]
[1720047220604,1.28935948,60418.0,60417.0,0.00618778]
[1720047221016,1.28935948,60418.0,60417.0,0.16707398]
[1720047221237,1.28935948,60418.0,60417.0,0.15568778]
[1720047221433,1.28935948,60418.0,60417.0,0.16707398]
[1720047221639,1.28955712,60418.0,60417.0,0.16707398]
[1720047222077,1.28955712,60418.0,60417.0,0.15568778]
[1720047222838,0.13096312,60418.0,60417.0,0.27548778]
[1720047223056,0.13096312,60418.0,60417.0,0.28198778]
[1720047223057,0.09942069,60418.0,60417.0,0.28198778]
[1720047223355,0.166338,60420.0,60419.0,0.18268778]
[1720047223356,0.00083,60420.0,60419.0,0.18268778]
[1720047223655,0.00083,60420.0,60419.0,0.4234436]
[1720047223856,0.00083,60420.0,60419.0,0.43482375]
[1720047225338,0.00083,60420.0,60419.0,0.35466793]
[1720047225519,0.00083,60420.0,60419.0,0.29466793]
[1720047225719,0.00083,60420.0,60419.0,0.30766793]
[1720047225916,0.00083,60420.0,60419.0,0.31566793]
[1720047226518,0.00083,60420.0,60419.0,0.30766793]
[1720047227787,0.00083,60420.0,60419.0,0.32066793]
[1720047228110,0.00083,60420.0,60419.0,0.38066793]
[1720047229057,0.00083,60420.0,60419.0,0.32066793]
[1720047229263,0.00083,60420.0,60419.0,0.38066793]
[1720047229481,0.00083,60420.0,60419.0,0.32066793]
[1720047229652,0.00083,60420.0,60419.0,0.38066793]
[1720047230301,0.00083,60420.0,60419.0,0.32066793]
[1720047231116,0.00083,60420.0,60419.0,0.31993785]
[1720047231529,0.166338,60420.0,60419.0,0.31993785]
[1720047232673,0.166338,60420.0,60419.0,0.30542885]
[1720047232877,0.166338,60420.0,60419.0,0.29147736]
[1720047233433,0.166338,60420.0,60419.0,0.19798015]
[1720047233434,0.82837,60420.0,60419.0,0.19798015]
[1720047233766,0.82837,60420.0,60419.0,0.1866]
[1720047234188,0.82837,60420.0,60419.0,0.1736]
[1720047234389,0.82837,60420.0,60419.0,0.1796]
[1720047234624,0.497354,60420.0,60419.0,0.1666]
[1720047234841,0.497354,60420.0,60419.0,0.1716]
[1720047234982,0.497354,60420.0,60419.0,0.17695927]
[1720047235488,0.497354,60420.0,60419.0,0.02235927]
[1720047235718,0.497354,60420.0,60419.0,0.011]
[1720047235719,1.55770952,60420.0,60419.0,0.011]
[1720047236028,1.70674366,60420.0,60419.0,0.011]
[1720047237116,1.70674366,60420.0,60419.0,0.006]
[1720047237526,1.70674366,60420.0,60416.0,0.000913]
[1720047237527,1.158612,60417.0,60416.0,0.000913]
[1720047237729,1.87071717,60417.0,60416.0,0.000913]
[1720047237949,1.99411717,60417.0,60416.0,0.000913]
[1720047238744,1.99511717,60417.0,60416.0,0.000913]
[1720047239097,1.99411717,60417.0,60416.0,0.000913]
[1720047239461,1.99511717,60417.0,60416.0,0.001913]
[1720047240248,1.99511717,60417.0,60416.0,0.002913]
[1720047240436,1.99511717,60417.0,60416.0,0.001913]
[1720047240437,1.29098637,60417.0,60416.0,0.001913]
[1720047240639,1.28998637,60417.0,60416.0,0.000913]
[1720047240840,1.28988155,60417.0,60416.0,0.000913]
[1720047241072,1.38380145,60417.0,60416.0,0.000913]
[1720047241222,1.38380113,60417.0,60416.0,0.000913]
[1720047241420,1.38280113,60417.0,60416.0,0.000913]
[1720047241626,1.29009791,60417.0,60416.0,0.000913]
[1720047241825,1.29109791,60417.0,60416.0,0.001913]
[1720047242251,1.29009791,60417.0,60416.0,0.001913]
[1720047242463,1.29009791,60417.0,60416.0,0.003913]
[1720047243269,1.258612,60417.0,60416.0,0.003913]